bitfinex/quotes_BTCUSD_20250802
["timestamp","ask_amount","ask_price","bid_price","bid_amount"]
[1754095805557,0.02960566,113870.0,113860.0,0.84313641]
[1754095806010,0.28872901,113880.0,113860.0,0.37875231]
[1754095806255,0.7129289,113880.0,113870.0,0.14232]
[1754095807848,0.65879588,113880.0,113870.0,0.14232]
[1754095811353,0.65879588,113880.0,113870.0,0.14117615]
[1754095814623,0.17563888,113870.0,113860.0,0.23939231]
[1754095814813,0.17563888,113870.0,113860.0,0.35516431]
[1754095814992,0.17563888,113870.0,113860.0,0.35536431]
[1754095815392,0.25908236,113870.0,113860.0,0.35536431]
[1754095816193,0.17563888,113870.0,113860.0,0.35536431]
[1754095816753,0.17563888,113870.0,113860.0,0.35752431]
[1754095820241,0.17563888,113870.0,113860.0,0.17947]
[1754095820464,0.17566974,113850.0,113840.0,0.08425461]
[1754095820683,0.17566974,113850.0,113840.0,0.35519517]
[1754095820902,0.17566974,113850.0,113840.0,0.35735517]
[1754095821646,0.17566974,113850.0,113840.0,0.21519517]
[1754095821839,0.17566974,113850.0,113840.0,0.35731517]
[1754095822044,0.17566974,113850.0,113840.0,0.21519517]
[1754095822258,0.17566974,113850.0,113840.0,0.18155]
[1754095822458,0.17566974,113850.0,113840.0,0.35723517]
[1754095824292,0.17566974,113850.0,113840.0,0.35823517]
[1754095824541,0.30342202,113850.0,113840.0,0.004]
[1754095824752,0.30342202,113850.0,113840.0,0.143]
[1754095824895,0.30342202,113850.0,113840.0,0.17799]
[1754095825136,0.30342202,113850.0,113840.0,0.18107]
[1754095825963,0.30342202,113850.0,113840.0,0.18319]
[1754095826410,0.25986963,113850.0,113840.0,0.18319]
[1754095827166,0.25486963,113850.0,113840.0,0.18319]
[1754095827350,0.25486963,113850.0,113840.0,0.18331]
[1754095829946,0.35297482,113870.0,113850.0,0.17566974]
[1754095829947,0.026394,113870.0,113850.0,0.17566974]
[1754095830186,0.2332427,113880.0,113860.0,0.68022841]
[1754095830418,0.2332427,113880.0,113870.0,0.21370888]
[1754095830645,0.2332427,113880.0,113870.0,0.21582888]
[1754095830867,0.5732427,113880.0,113870.0,0.21582888]
[1754095831298,0.39752676,113880.0,113870.0,0.21582888]
[1754095831514,0.48172665,113880.0,113870.0,0.36178888]
[1754095831980,0.47294548,113880.0,113870.0,0.36178888]
[1754095832166,0.13294548,113880.0,113870.0,0.36178888]
[1754095832612,0.04874559,113880.0,113870.0,0.36178888]
[1754095832833,0.04874559,113880.0,113870.0,0.82617298]
[1754095833056,0.04874559,113880.0,113870.0,0.36178888]
[1754095833286,0.04874559,113880.0,113870.0,0.82617298]
[1754095834869,0.04874559,113880.0,113870.0,0.36178888]
[1754095835316,0.04874559,113880.0,113870.0,0.82617298]
[1754095836809,0.04874559,113880.0,113870.0,0.36178888]
[1754095837264,0.04874559,113880.0,113870.0,0.82617298]
[1754095838104,0.04874559,113880.0,113870.0,0.36178888]
[1754095838984,0.04874559,113880.0,113870.0,0.35966888]
[1754095839402,0.04874559,113880.0,113870.0,0.36178888]
[1754095840670,0.04874559,113880.0,113870.0,0.39307252]
[1754095845320,0.04874559,113880.0,113870.0,0.85745662]
[1754095845960,0.04874559,113880.0,113870.0,0.39307252]
[1754095847128,0.04874559,113880.0,113870.0,0.85745662]
[1754095847344,0.02003201,113880.0,113870.0,0.85745662]
[1754095847535,0.02003201,113880.0,113870.0,0.87309844]
[1754095847949,0.02003201,113880.0,113870.0,0.40871434]
[1754095848260,0.02003201,113880.0,113870.0,0.87309844]
[1754095848658,0.02003201,113880.0,113870.0,0.87509844]
[1754095849082,0.02003201,113880.0,113870.0,0.95929833]
[1754095849317,0.02003201,113880.0,113870.0,0.96029833]
[1754095849732,0.02003201,113880.0,113870.0,1.30029833]
[1754095849944,0.02003201,113880.0,113870.0,0.83591423]
[1754095850165,0.02003201,113880.0,113870.0,1.25337287]
[1754095852305,0.02003201,113880.0,113870.0,0.78898877]
[1754095852755,0.02003201,113880.0,113870.0,1.25337287]
[1754095852980,0.02003201,113880.0,113870.0,1.27760987]
[1754095855225,0.02003201,113880.0,113870.0,0.81322577]
[1754095855489,1.02003201,113880.0,113870.0,1.27760987]
[1754095857118,1.02003201,113880.0,113870.0,1.80453345]
[1754095857634,1.02003201,113880.0,113870.0,1.74199397]
[1754095858141,1.02003201,113880.0,113870.0,1.80453345]
[1754095858375,1.02003201,113880.0,113870.0,1.74199397]
[1754095858592,1.02003201,113880.0,113870.0,1.27760987]
[1754095859439,1.02003201,113880.0,113870.0,1.80453345]
[1754095859654,0.60426533,113880.0,113870.0,1.78886176]
[1754095859863,0.60426533,113880.0,113870.0,1.74199397]
[1754095860061,0.15236563,113880.0,113870.0,1.78885577]
[1754095860274,1e-08,113890.0,113880.0,0.51562346]
[1754095860505,0.02423738,113900.0,113890.0,0.17560804]
[1754095860737,0.02423738,113900.0,113890.0,0.90270258]
[1754095860945,0.02423738,113900.0,113890.0,0.94010258]
[1754095862218,0.02423738,113900.0,113890.0,0.94110258]
[1754095863547,0.02423738,113900.0,113890.0,0.96747858]
[1754095864728,0.02423738,113900.0,113890.0,0.93624803]
[1754095864972,0.02423738,113900.0,113890.0,0.96747858]
[1754095865615,0.02423738,113900.0,113890.0,0.50309448]
[1754095865823,0.02423738,113900.0,113890.0,0.96747858]
[1754095866714,0.02423738,113900.0,113890.0,0.50309448]
[1754095866936,0.02423738,113900.0,113890.0,0.96747858]
[1754095868525,0.02423738,113900.0,113890.0,0.93624803]
[1754095868723,0.02423738,113900.0,113890.0,0.47186393]
[1754095869004,0.02423738,113900.0,113890.0,0.93624803]
[1754095869196,0.02423738,113900.0,113890.0,0.96747858]
[1754095870483,0.02423738,113900.0,113890.0,0.98310983]
[1754095870739,0.02423738,113900.0,113890.0,0.51872573]
[1754095870947,0.02423738,113900.0,113890.0,0.98310983]
[1754095871626,0.02423738,113900.0,113890.0,0.51872573]
[1754095871877,0.02423738,113900.0,113890.0,0.98310983]
[1754095872408,0.02423738,113900.0,113890.0,0.51872573]
[1754095872633,0.02423738,113900.0,113890.0,0.98310983]
[1754095872869,0.02423738,113900.0,113890.0,0.51872573]
[1754095873099,0.02423738,113900.0,113890.0,0.98310983]
[1754095874946,0.02423738,113900.0,113890.0,0.98326983]
[1754095877329,0.02423738,113900.0,113890.0,0.93640803]
[1754095877543,0.02423738,113900.0,113890.0,0.98335706]
[1754095877747,0.02423738,113900.0,113890.0,0.93640803]
[1754095879540,0.02423738,113900.0,113890.0,0.47202393]
[1754095879782,0.02423738,113900.0,113890.0,0.93640803]
[1754095881620,0.02423738,113900.0,113890.0,0.47202393]
[1754095881774,0.02423738,113900.0,113890.0,0.93640803]
[1754095883691,0.02423738,113900.0,113890.0,0.47202393]
[1754095883926,0.02423738,113900.0,113890.0,0.93640803]
[1754095885372,0.02423738,113900.0,113890.0,0.93540803]
[1754095885580,0.02423738,113900.0,113890.0,0.93640803]
[1754095885824,0.02423738,113900.0,113890.0,0.47402393]
[1754095886042,0.02423738,113900.0,113890.0,0.93840803]
[1754095886747,0.02423738,113900.0,113890.0,1.27840803]
[1754095887198,0.02423738,113900.0,113890.0,0.81402393]
[1754095887496,0.02423738,113900.0,113890.0,1.27840803]
[1754095887711,0.02423738,113900.0,113890.0,0.81402393]
[1754095887939,0.02423738,113900.0,113890.0,1.27840803]
[1754095889209,0.02423738,113900.0,113890.0,0.81402393]
[1754095889449,0.02423738,113900.0,113890.0,1.27840803]
[1754095889928,0.02423738,113900.0,113890.0,1.13296803]
[1754095890161,0.02423738,113900.0,113890.0,1.27816803]
[1754095891174,0.02423738,113900.0,113890.0,1.27812803]
[1754095891869,0.02423738,113900.0,113890.0,0.66858393]
[1754095892090,0.02423738,113900.0,113890.0,1.27812803]
[1754095893423,0.02423738,113900.0,113890.0,1.34066751]
[1754095893893,0.02423738,113900.0,113890.0,0.87612341]
[1754095894102,0.02423738,113900.0,113890.0,1.34050751]
[1754095903903,0.02423738,113900.0,113890.0,0.87612341]
[1754095904114,0.02423738,113900.0,113890.0,1.34050751]
[1754095905380,0.02423738,113900.0,113890.0,0.87612341]
[1754095905806,0.02423738,113900.0,113890.0,1.34050751]
[1754095906243,0.02423738,113900.0,113890.0,0.87412341]
[1754095906467,0.02423738,113900.0,113890.0,0.20498404]
[1754095906693,0.02423738,113900.0,113890.0,0.35310404]
[1754095907127,0.02423738,113900.0,113890.0,0.81748814]
[1754095907350,0.02423738,113900.0,113890.0,0.40017981]
[1754095907578,0.19983,113900.0,113890.0,0.07645177]
[1754095907854,0.19983,113900.0,113890.0,0.0814552]
[1754095908103,0.19983,113900.0,113890.0,0.18305943]
[1754095908325,0.19983,113900.0,113890.0,0.03437943]
[1754095908547,0.19983,113900.0,113890.0,0.18301943]
[1754095908548,0.53983,113900.0,113890.0,0.18301943]
[1754095908763,1.02166312,113900.0,113890.0,0.15164]
[1754095908975,1.02166312,113900.0,113890.0,0.003]
[1754095909433,1.02166312,113900.0,113890.0,0.002]
[1754095909876,0.17563888,113870.0,113860.0,0.03137943]
[1754095910092,0.17563888,113870.0,113860.0,0.1801227]
[1754095911410,0.17563888,113870.0,113860.0,0.1820827]
[1754095911619,0.17563888,113870.0,113860.0,0.0335227]
[1754095911813,0.17563888,113870.0,113860.0,0.0727727]
[1754095911936,0.17563888,113870.0,113860.0,0.0335227]
[1754095912161,0.17563888,113870.0,113860.0,0.15158327]
[1754095912577,0.29496624,113870.0,113860.0,0.00314327]
[1754095912791,1.11679936,113870.0,113860.0,0.00314327]
[1754095913825,0.65241526,113870.0,113860.0,0.00214327]
[1754095914070,0.65241526,113870.0,113860.0,0.00014327]
[1754095914690,0.43374783,113870.0,113860.0,0.00014327]
[1754095914895,0.60938671,113870.0,113860.0,0.00014327]
[1754095916164,0.34,113870.0,113860.0,0.00014327]
[1754095916366,0.17562346,113880.0,113870.0,0.17563888]
[1754095916546,0.02629893,113880.0,113870.0,0.36551888]
[1754095916750,0.0087804,113890.0,113880.0,0.17562346]
[1754095916959,0.34803,113900.0,113880.0,0.67634756]
[1754095917158,0.28402989,113900.0,113880.0,0.67954756]
[1754095917387,0.02423738,113900.0,113890.0,0.36014804]
[1754095917587,0.02423738,113900.0,113890.0,0.82987214]
[1754095918804,0.02423738,113900.0,113890.0,0.36548804]
[1754095918971,0.02423738,113900.0,113890.0,0.82987214]
[1754095920903,0.02423738,113900.0,113890.0,0.36548804]
[1754095921263,0.02423738,113900.0,113890.0,0.82987214]
[1754095922418,0.02423738,113900.0,113890.0,0.36548804]
[1754095922627,0.02423738,113900.0,113890.0,0.82987214]
[1754095922837,0.02423738,113900.0,113890.0,0.83087214]
[1754095923279,0.02423738,113900.0,113890.0,0.83083214]
[1754095923957,0.02423738,113900.0,113890.0,0.91503203]
[1754095924797,0.02423738,113900.0,113890.0,0.45064793]
[1754095924945,0.02423738,113900.0,113890.0,0.91503203]
[1754095925555,0.02423738,113900.0,113890.0,0.91403203]
[1754095925987,0.02423738,113900.0,113890.0,0.91603203]
[1754095926925,0.02423738,113900.0,113890.0,0.45164793]
[1754095927128,0.02423738,113900.0,113890.0,0.91603203]
[1754095927470,0.02423738,113900.0,113890.0,0.45164793]
[1754095927677,0.02423738,113900.0,113890.0,0.76887203]
[1754095927883,0.02423738,113900.0,113890.0,0.91699203]
[1754095928970,0.21985339,113920.0,113900.0,0.17559262]
[1754095929252,0.17557855,113910.0,113900.0,0.21513262]
[1754095929461,0.21985339,113920.0,113900.0,0.36535262]
[1754095929664,0.21985339,113920.0,113910.0,0.03634]
[1754095930077,0.21985339,113920.0,113910.0,0.03954]
[1754095930286,0.21993726,113920.0,113910.0,0.18434]
[1754095931863,0.21993726,113920.0,113910.0,0.148]
[1754095933918,0.17557721,113910.0,113900.0,0.21613262]
[1754095934292,0.17557721,113910.0,113900.0,0.18498]
[1754095934661,0.17557721,113910.0,113900.0,0.18818]
[1754095935221,0.17557721,113910.0,113900.0,0.18718]
[1754095935687,0.17557721,113910.0,113900.0,0.18818]
[1754095936710,0.17557721,113910.0,113900.0,0.83029672]
[1754095938262,0.21993726,113920.0,113900.0,0.83029672]
[1754095938503,0.17557721,113910.0,113900.0,0.32637262]
[1754095938717,0.21993726,113920.0,113910.0,0.17557721]
[1754095938922,0.21993726,113920.0,113900.0,0.78861672]
[1754095938923,0.17557721,113910.0,113900.0,0.78861672]
[1754095939168,0.21993726,113920.0,113900.0,0.83029672]
[1754095939375,0.21993726,113920.0,113900.0,0.79075672]
[1754095939594,0.21993726,113920.0,113910.0,0.03954]
[1754095940020,0.21993726,113920.0,113900.0,0.14864]
[1754095940021,0.17557721,113910.0,113900.0,0.18778]
[1754095940651,0.17557721,113910.0,113900.0,0.18678]
[1754095941251,0.17557721,113910.0,113900.0,0.18892]
[1754095941770,0.17557721,113910.0,113900.0,0.04168]
[1754095941978,0.1756039,113900.0,113890.0,0.065918]
[1754095942194,0.1756039,113900.0,113890.0,0.18662]
[1754095942394,0.1756039,113900.0,113890.0,0.18876]
[1754095943056,0.1756039,113900.0,113890.0,0.36436804]
[1754095943863,0.1756039,113900.0,113890.0,0.04154]
[1754095944407,0.1756039,113900.0,113890.0,0.18954]
[1754095945977,0.1756039,113900.0,113890.0,0.36729804]
[1754095946172,0.1756039,113900.0,113890.0,0.19169]
[1754095946775,0.18435607,113910.0,113890.0,0.83168214]
[1754095946979,0.18435607,113910.0,113900.0,0.63997672]
[1754095947180,0.30413715,113920.0,113900.0,0.68437672]
[1754095947361,0.21993726,113920.0,113910.0,0.14744]
[1754095947610,0.21993726,113920.0,113910.0,0.19184]
[1754095949051,0.21993726,113920.0,113910.0,0.18969]
[1754095949850,0.21993726,113920.0,113910.0,0.19184]
[1754095953938,0.21993726,113920.0,113910.0,0.18969]
[1754095955023,0.21993726,113920.0,113910.0,0.19184]
[1754095958007,0.21993726,113920.0,113910.0,0.18969]
[1754095960190,0.21993726,113920.0,113910.0,0.18607]
[1754095960400,0.68432136,113920.0,113910.0,0.18913]
[1754095960520,0.21993726,113920.0,113910.0,0.18913]
[1754095961916,0.21993726,113920.0,113910.0,0.19128]
[1754095964026,0.21993726,113920.0,113910.0,0.18913]
[1754095964224,0.21993726,113920.0,113910.0,0.14688]
[1754095964908,0.21993726,113920.0,113910.0,0.18607]
[1754095965101,0.21993726,113920.0,113910.0,0.18913]
[1754095966030,0.21993726,113920.0,113910.0,0.04225]
[1754095966678,0.21993726,113920.0,113910.0,0.03919]
[1754095966885,0.21993726,113920.0,113910.0,0.04225]
[1754095968036,0.21993726,113920.0,113910.0,0.0444]
[1754095969281,0.21993726,113920.0,113910.0,0.04225]
[1754095974347,0.21993726,113920.0,113910.0,0.0444]
[1754095975292,0.21993726,113920.0,113910.0,0.68436131]
[1754095976303,0.21993726,113920.0,113910.0,0.21997721]
[1754095976517,0.21993579,113920.0,113910.0,0.68436131]
[1754095978671,0.21993579,113920.0,113910.0,0.0444]
[1754095979498,0.21993579,113920.0,113910.0,0.5087841]
[1754095982279,0.21993579,113920.0,113910.0,0.0444]
[1754095982489,0.30413568,113920.0,113910.0,0.04225]
[1754095982631,0.30413568,113920.0,113910.0,0.18515]
[1754095983042,0.76851978,113920.0,113910.0,0.18515]
[1754095983244,0.76851978,113920.0,113910.0,0.14596]
[1754095983468,0.30413568,113920.0,113910.0,0.18367]
[1754095983684,0.30413568,113920.0,113910.0,0.18679]
[1754095984093,0.30413568,113920.0,113910.0,0.18887]
[1754095984291,0.30413568,113920.0,113910.0,0.04291]
[1754095984514,0.30413568,113920.0,113910.0,0.18883]
[1754095984690,0.21993579,113920.0,113910.0,0.18883]
[1754095985349,0.21993579,113920.0,113910.0,0.82879131]
[1754095985534,0.21993579,113920.0,113910.0,0.18883]
[1754095985750,0.21993579,113920.0,113910.0,0.18871]
[1754095985983,0.21993579,113920.0,113910.0,0.18879]
[1754095996654,0.21993579,113920.0,113910.0,0.36436721]
[1754095998116,0.21993579,113920.0,113910.0,0.82875131]
[1754095999861,0.21993579,113920.0,113910.0,0.18879]
[1754096000289,0.21993579,113920.0,113910.0,0.36436721]
[1754096000479,0.21993579,113920.0,113910.0,0.82875131]
[1754096001732,0.044374,113920.0,113910.0,0.82875131]
[1754096001952,0.21993579,113920.0,113910.0,0.82875131]
[1754096003970,0.21993579,113920.0,113910.0,0.36436721]
[1754096004190,0.21993579,113920.0,113910.0,0.82875131]
[1754096005717,0.044374,113920.0,113910.0,0.82875131]
[1754096006319,0.03559592,113920.0,113910.0,0.82875131]
[1754096006754,0.03559592,113920.0,113910.0,0.36436721]
[1754096006955,0.03559592,113920.0,113910.0,0.82875131]
[1754096008170,0.35693657,113940.0,113920.0,0.17556179]
[1754096008401,0.1755748,113930.0,113920.0,0.17870179]
[1754096008606,0.1755748,113930.0,113920.0,0.18085179]
[1754096009014,0.18435211,113930.0,113920.0,0.21697179]
[1754096009227,0.21015481,113930.0,113920.0,0.21697179]
[1754096012232,0.0258027,113930.0,113920.0,0.21697179]
[1754096012446,0.17554638,113930.0,113920.0,0.21697179]
[1754096014306,0.20127882,113930.0,113920.0,0.21697179]
[1754096014789,0.02573244,113930.0,113920.0,0.21697179]
[1754096015257,0.44029388,113940.0,113920.0,0.21697179]
[1754096015482,0.44029388,113940.0,113920.0,0.17771179]
[1754096015691,0.78029388,113940.0,113930.0,0.03926]
[1754096016101,0.78029388,113940.0,113930.0,0.04141]
[1754096017847,0.80676272,113940.0,113930.0,0.04141]
[1754096019178,0.02694626,113940.0,113930.0,0.36183638]
[1754096019380,0.02694626,113940.0,113930.0,0.82622048]
[1754096021323,0.02694626,113940.0,113930.0,0.36183638]
[1754096021548,0.02694626,113940.0,113930.0,0.82622048]
[1754096022200,0.02694626,113940.0,113930.0,0.36183638]
[1754096022410,0.02694626,113940.0,113930.0,0.82622048]
[1754096023660,0.02694626,113940.0,113930.0,0.36183638]
[1754096023866,0.02694626,113940.0,113930.0,0.82622048]
[1754096025106,0.02694626,113940.0,113930.0,0.36183638]
[1754096025312,0.02694626,113940.0,113930.0,0.82622048]
[1754096025907,0.02694626,113940.0,113930.0,0.36183638]
[1754096026114,0.02694626,113940.0,113930.0,0.82622048]
[1754096026739,0.02694626,113940.0,113930.0,0.85258948]
[1754096027934,0.02694626,113940.0,113930.0,0.38848538]
[1754096028146,0.02694626,113940.0,113930.0,0.85286948]
[1754096029151,0.02694626,113940.0,113930.0,0.38848538]
[1754096029377,0.02694626,113940.0,113930.0,0.85286948]
[1754096032265,0.02694626,113940.0,113930.0,0.38848538]
[1754096032486,0.02694626,113940.0,113930.0,0.85286948]
[1754096032698,0.00047742,113940.0,113930.0,0.85286948]
[1754096034733,0.00047742,113940.0,113930.0,0.70770948]
[1754096034975,0.00047742,113940.0,113930.0,0.85306948]
[1754096035455,0.00047742,113940.0,113930.0,0.38868538]
[1754096035691,0.00047742,113940.0,113930.0,0.85306948]
[1754096036594,0.00047742,113940.0,113930.0,0.38868538]
[1754096036816,0.00047742,113940.0,113930.0,0.85290948]
[1754096038685,0.00047742,113940.0,113930.0,0.38852538]
[1754096038906,0.00047742,113940.0,113930.0,0.85290948]
[1754096041993,0.00047742,113940.0,113930.0,0.85250948]
[1754096044096,0.00047742,113940.0,113930.0,0.82614048]
[1754096047032,0.00047742,113940.0,113930.0,1.0558786]
[1754096049410,0.00047742,113940.0,113930.0,1.75000082]
[1754096049887,0.00047742,113940.0,113930.0,1.0558786]
[1754096050366,0.00047742,113940.0,113930.0,1.75000082]
[1754096054577,0.00047742,113940.0,113930.0,1.77636882]
[1754096058220,0.00047742,113940.0,113930.0,1.86056871]
[1754096060634,0.00047742,113940.0,113930.0,1.86156871]
[1754096060847,0.00047742,113940.0,113930.0,0.47332427]
[1754096061059,0.00047742,113940.0,113930.0,1.16744649]
[1754096061276,0.00047742,113940.0,113930.0,1.86156871]
[1754096067312,0.00047742,113940.0,113930.0,2.20156871]
[1754096071035,0.00047742,113940.0,113930.0,1.50744649]
[1754096073382,0.00047742,113940.0,113930.0,0.81332427]
[1754096073593,0.00047742,113940.0,113930.0,1.50744649]
[1754096080224,0.00047742,113940.0,113930.0,1.56998597]
[1754096080528,0.00047742,113940.0,113930.0,0.81332427]
[1754096080769,0.00047742,113940.0,113930.0,1.50744649]
[1754096085094,0.00047742,113940.0,113930.0,1.56874597]
[1754096086827,0.00047742,113940.0,113930.0,2.26286819]
[1754096087499,0.00047742,113940.0,113930.0,2.20032871]
[1754096087707,0.00047742,113940.0,113930.0,0.87462375]
[1754096088143,0.00047742,113940.0,113930.0,2.26286819]
[1754096089781,0.00047742,113940.0,113930.0,1.56902597]
[1754096090350,0.00047742,113940.0,113930.0,2.26314819]
[1754096091853,0.00047742,113940.0,113930.0,1.56902597]
[1754096092053,0.00047742,113940.0,113930.0,0.87490375]
[1754096092387,0.00047742,113940.0,113930.0,1.56902597]
[1754096093455,0.00047742,113940.0,113930.0,0.87498375]
[1754096093650,0.00047742,113940.0,113930.0,1.50656649]
[1754096094263,0.00047742,113940.0,113930.0,1.56910597]
[1754096096556,0.00047742,113940.0,113930.0,1.56894597]
[1754096097773,0.00047742,113940.0,113930.0,1.42518597]
[1754096097998,0.00047742,113940.0,113930.0,1.56882597]
[1754096098487,0.00047742,113940.0,113930.0,1.42518597]
[1754096098684,0.00047742,113940.0,113930.0,1.56878597]
[1754096098826,0.00047742,113940.0,113930.0,1.42518597]
[1754096099031,0.00047742,113940.0,113930.0,1.56870597]
[1754096101928,0.00047742,113940.0,113930.0,0.87458375]
[1754096102180,0.00047742,113940.0,113930.0,1.56870597]
[1754096102413,0.00047742,113940.0,113930.0,0.73106375]
[1754096102617,0.00047742,113940.0,113930.0,1.42518597]
[1754096102831,0.00047742,113940.0,113930.0,1.56878597]
[1754096104348,0.00047742,113940.0,113930.0,2.26290819]
[1754096105069,0.00047742,113940.0,113930.0,0.87466375]
[1754096105304,0.00047742,113940.0,113930.0,1.56878597]
[1754096105532,0.00047742,113940.0,113930.0,2.26290819]
[1754096108013,0.00047742,113940.0,113930.0,2.26190819]
[1754096108357,0.00047742,113940.0,113930.0,2.26390819]
[1754096109066,0.00047742,113940.0,113930.0,2.26490819]
[1754096111303,0.00047742,113940.0,113930.0,0.87666375]
[1754096111518,0.00047742,113940.0,113930.0,2.26490819]
[1754096114719,0.00047742,113940.0,113930.0,0.73306375]
[1754096114958,0.00047742,113940.0,113930.0,1.57058597]
[1754096115372,0.00047742,113940.0,113930.0,2.26470819]
[1754096115579,0.00047742,113940.0,113930.0,1.57058597]
[1754096116803,0.00047742,113940.0,113930.0,0.87646375]
[1754096117011,0.00047742,113940.0,113930.0,1.57058597]
[1754096117475,0.00047742,113940.0,113930.0,2.26470819]
[1754096118508,0.00047742,113940.0,113930.0,2.12130819]
[1754096118726,0.00047742,113940.0,113930.0,2.26510819]
[1754096118948,0.00047742,113940.0,113930.0,2.26506819]
[1754096120354,0.00047742,113940.0,113930.0,2.12130819]
[1754096120735,0.00047742,113940.0,113930.0,2.26494819]
[1754096121683,0.00047742,113940.0,113930.0,2.12130819]
[1754096121890,0.00047742,113940.0,113930.0,2.26498819]
[1754096122508,0.00047742,113940.0,113930.0,2.26494819]
[1754096123732,0.00047742,113940.0,113930.0,0.87670375]
[1754096123939,0.00047742,113940.0,113930.0,2.26494819]
[1754096125224,0.1842594,113970.0,113950.0,0.17551557]
[1754096125450,0.87838162,113970.0,113960.0,0.14348]
[1754096125631,0.87850734,113970.0,113960.0,0.14348]
[1754096127023,0.18438512,113970.0,113960.0,0.14348]
[1754096127224,0.87850734,113970.0,113960.0,0.14348]
[1754096127479,0.91419796,113970.0,113960.0,0.14348]
[1754096129335,0.22007574,113970.0,113960.0,0.14348]
[1754096129476,0.91419796,113970.0,113950.0,0.89600279]
[1754096129679,0.91419796,113970.0,113960.0,0.1436]
[1754096129901,0.22007574,113970.0,113960.0,0.1436]
[1754096130068,0.91419796,113970.0,113960.0,0.1436]
[1754096131103,0.22007574,113970.0,113960.0,0.2436]
[1754096131302,0.91419796,113970.0,113960.0,0.2436]
[1754096131982,0.91419796,113970.0,113960.0,0.1]
[1754096132185,0.91419796,113970.0,113960.0,0.24352]
[1754096132989,0.91419796,113970.0,113960.0,0.1]
[1754096133190,0.22007574,113970.0,113960.0,0.24348]
[1754096133576,0.91419796,113970.0,113960.0,0.1]
[1754096133768,0.22007574,113970.0,113960.0,0.24344]
[1754096133974,0.91419796,113970.0,113960.0,0.24344]
[1754096134395,1.69252007,113970.0,113960.0,0.24352]
[1754096134543,1.69252007,113970.0,113960.0,0.1]
[1754096134771,1.69252007,113970.0,113960.0,0.24352]
[1754096135177,0.99839785,113970.0,113960.0,0.24352]
[1754096137220,1.01584687,113970.0,113960.0,0.1]
[1754096138060,0.32172465,113970.0,113960.0,0.1]
[1754096138269,1.01584687,113970.0,113960.0,0.1]
[1754096138478,0.17553098,113940.0,113930.0,0.182]
[1754096138683,0.17553098,113940.0,113930.0,0.17895]
[1754096138907,0.8696532,113940.0,113930.0,0.17895]
[1754096139308,0.17553098,113940.0,113930.0,0.182]
[1754096139514,0.17553098,113940.0,113930.0,0.0386]
[1754096139716,0.17553098,113940.0,113930.0,0.182]
[1754096139887,0.17553098,113940.0,113930.0,0.184]
[1754096140475,0.17553098,113940.0,113930.0,0.87912222]
[1754096141939,0.86963779,113950.0,113930.0,0.36261638]
[1754096142142,0.17553098,113940.0,113930.0,1.0546686]
[1754096142430,0.17553098,113940.0,113930.0,0.36054638]
[1754096142635,0.17553098,113940.0,113930.0,0.21714638]
[1754096142805,0.17553098,113940.0,113930.0,1.0567386]
[1754096143010,0.17553098,113940.0,113930.0,0.36261638]
[1754096143214,0.17553098,113940.0,113930.0,0.18607]
[1754096144013,0.17553098,113940.0,113930.0,0.184]
[1754096144226,0.8696532,113940.0,113930.0,0.184]
[1754096144403,0.17553098,113940.0,113930.0,0.18195]
[1754096145031,0.17553098,113940.0,113930.0,0.0416]
[1754096145234,0.17553098,113940.0,113930.0,0.18504]
[1754096145431,0.8696532,113940.0,113930.0,0.18504]
[1754096145723,0.17553098,113940.0,113930.0,0.0416]
[1754096145949,0.17553098,113940.0,113930.0,0.18504]
[1754096147513,0.8696532,113940.0,113930.0,0.18504]
[1754096147918,0.17553098,113940.0,113930.0,0.18504]
[1754096148963,0.17553098,113940.0,113930.0,0.0416]
[1754096149237,0.17553098,113940.0,113930.0,0.18504]
[1754096150079,0.8696532,113940.0,113930.0,0.18504]
[1754096150724,0.8696532,113940.0,113930.0,0.0386]
[1754096150932,0.17553098,113940.0,113930.0,0.18204]
[1754096151144,0.8696532,113940.0,113930.0,0.001]
[1754096151363,0.8696532,113940.0,113930.0,0.14444]
[1754096151790,0.31893098,113940.0,113930.0,0.001]
[1754096152218,1.0130532,113940.0,113930.0,0.001]
[1754096152462,0.31893098,113940.0,113930.0,0.001]
[1754096152676,1.0130532,113940.0,113930.0,0.001]
[1754096153268,1.0130532,113940.0,113930.0,0.03655]
[1754096153708,1.43725309,113940.0,113930.0,0.001]
[1754096153889,1.45470211,113940.0,113930.0,0.001]
[1754096155392,1.48107711,113940.0,113930.0,0.001]
[1754096156024,0.17554638,113930.0,113920.0,0.17895]
[1754096156249,0.8696686,113930.0,113920.0,0.17895]
[1754096156448,0.17554638,113930.0,113920.0,0.18201]
[1754096156649,0.8696686,113930.0,113920.0,0.18201]
[1754096156866,0.17554638,113930.0,113920.0,0.18201]
[1754096157287,0.17554638,113930.0,113920.0,0.18248742]
[1754096158899,0.8696686,113930.0,113920.0,0.18248742]
[1754096160196,0.17554638,113930.0,113920.0,0.18248742]
[1754096160398,0.17554638,113930.0,113920.0,0.18348742]
[1754096160604,0.8696686,113930.0,113920.0,0.18248742]
[1754096160817,0.17554638,113930.0,113920.0,0.18248742]
[1754096161747,0.97131751,113930.0,113920.0,0.03908742]
[1754096161935,0.61719529,113930.0,113920.0,0.00047742]
[1754096162147,1.31131751,113930.0,113920.0,0.00047742]
[1754096163329,0.61719529,113930.0,113920.0,0.00047742]
[1754096163540,1.31131751,113930.0,113920.0,0.00047742]
[1754096163745,1.3955174,113930.0,113920.0,0.00047742]
[1754096163974,1.42198495,113930.0,113920.0,0.00047742]
[1754096164189,1.44836295,113930.0,113920.0,0.00047742]
[1754096165301,1.71521965,113930.0,113920.0,0.00047742]
[1754096165734,1.63101976,113930.0,113920.0,0.00047742]
[1754096166492,0.93689754,113930.0,113920.0,0.00047742]
[1754096166690,1.63101976,113930.0,113920.0,0.00047742]
[1754096166918,1.55440199,113930.0,113920.0,0.00047742]
[1754096170349,1.57940199,113930.0,113920.0,0.00047742]
[1754096170774,1.66360188,113930.0,113920.0,0.00047742]
[1754096172105,1.80700188,113930.0,113920.0,0.00047742]
[1754096175702,1.18949743,113930.0,113920.0,0.00047742]
[1754096175915,1.80700188,113930.0,113920.0,0.00047742]
[1754096176800,1.75055199,113930.0,113920.0,0.04247742]
[1754096180244,1.13304754,113930.0,113920.0,0.04247742]
[1754096180486,1.75055199,113930.0,113920.0,0.04247742]
[1754096181478,1.69780199,113930.0,113920.0,0.04247742]
[1754096185043,1.08029754,113930.0,113920.0,0.04247742]
[1754096185270,1.67142399,113930.0,113920.0,0.04247742]
[1754096188972,1.74864113,113930.0,113920.0,0.04247742]
[1754096190309,1.74860113,113930.0,113920.0,0.04247742]
[1754096191994,1.05387954,113930.0,113920.0,0.04247742]
[1754096192219,1.74860113,113930.0,113920.0,0.04247742]
[1754096192906,1.83280102,113930.0,113920.0,0.04247742]
[1754096193585,1.13807943,113930.0,113920.0,0.04247742]